lending/lending_fUSD_20251015
["ID","MTS","AMOUNT","RATE_DAILY","PERIOD"]
[391346830,1760557835337,-500.0,0.00018582,2]
[391346831,1760557835347,-500.0,0.00018582,2]
[391346832,1760557835356,-500.0,0.00018582,2]
[391346833,1760557835366,-500.0,0.00018582,2]
[391346834,1760557835375,-500.0,0.00018582,2]
[391346835,1760557835385,-500.0,0.00018582,2]
[391346836,1760557835394,-563.50431474,0.00018656,2]
[391346837,1760557835403,-2019.7872192,0.000187,2]
[391346838,1760557835413,-3292.0,0.00018759,2]
[391346839,1760557835423,-1000.0,0.0001876,2]
[391346840,1760557835432,-2019.7872192,0.000189,2]
[391346841,1760557835443,-2060.11,0.000189,2]
[391346842,1760557835454,-317.04732115,0.000189,2]
[391346843,1760557835464,-5000.0,0.000189,2]
[391346844,1760557835474,-1600.0,0.00018943,2]
[391346845,1760557835489,-694.86,0.00018944,2]
[391346846,1760557835499,-213.64,0.00018945,2]
[391346847,1760557835510,-474.66,0.00018945,2]
[391346848,1760557835520,-474.66,0.00018945,2]
[391346849,1760557835530,-474.66,0.00018945,2]
[391346850,1760557835547,-472.76,0.00018945,2]
[391346851,1760557835558,-474.66,0.00018945,2]
[391346852,1760557835569,-695.07,0.00018945,2]
[391346853,1760557835579,-1000.0,0.00018972,2]
[391346854,1760557835589,-500.0,0.00018973,2]
[391346855,1760557835599,-500.0,0.00018973,2]
[391346856,1760557835610,-500.0,0.00018973,2]
[391346857,1760557835620,-582.12131672,0.00018973,2]
[391346858,1760557835630,-500.0,0.00018973,2]
[391346859,1760557835640,-500.0,0.00018973,2]
[391346860,1760557835650,-500.0,0.00018973,2]
[391346861,1760557835660,-500.0,0.00018973,2]
[391346862,1760557835671,-500.0,0.00018973,2]
[391346863,1760557835681,-501.31943648,0.00018973,2]
[391346864,1760557835691,-500.0,0.00018981,2]
[391346865,1760557835700,-1623.69,0.00018988,2]
[391346866,1760557835712,-1142.67,0.0001899,2]
[391346867,1760557835722,-1000.0,0.00018999,2]
[391346868,1760557835732,-500.0,0.00018999,2]
[391346869,1760557835742,-500.0,0.00018999,2]
[391346870,1760557835752,-500.0,0.00018999,2]
[391346871,1760557835761,-500.0,0.00018999,2]
[391346872,1760557835771,-500.0,0.00018999,2]
[391346873,1760557835784,-500.0,0.00018999,2]
[391346875,1760557835794,-500.0,0.00018999,2]
[391346877,1760557835804,-500.0,0.00018999,2]
[391346879,1760557835814,-500.0,0.00018999,2]
[391346881,1760557835824,-500.0,0.00018999,2]
[391346883,1760557835833,-500.0,0.00018999,2]
[391346885,1760557835843,-500.0,0.00018999,2]
[391346887,1760557835852,-500.0,0.00018999,2]
[391346889,1760557835863,-500.0,0.00018999,2]
[391346891,1760557835872,-500.0,0.00018999,2]
[391346893,1760557835882,-500.0,0.00018999,2]
[391346895,1760557835894,-574.6546228,0.00018999,2]
[391346897,1760557835904,-500.0,0.00018999,2]
[391346899,1760557835914,-500.0,0.00018999,2]
[391346901,1760557835924,-500.0,0.00018999,2]
[391346903,1760557835934,-500.0,0.00018999,2]
[391346905,1760557835944,-500.0,0.00018999,2]
[391346907,1760557835955,-500.0,0.00018999,2]
[391346909,1760557835965,-500.0,0.00018999,2]
[391346911,1760557835975,-500.0,0.00018999,2]
[391346912,1760557835985,-500.0,0.00018999,2]
[391346915,1760557835995,-500.0,0.00018999,2]
[391346919,1760557836005,-500.0,0.00018999,2]
[391346922,1760557836015,-500.0,0.00018999,2]
[391346924,1760557836025,-500.0,0.00018999,2]
[391346927,1760557836035,-500.0,0.00018999,2]
[391346930,1760557836046,-500.0,0.00018999,2]
[391346933,1760557836060,-500.0,0.00018999,2]
[391346935,1760557836070,-500.0,0.00018999,2]
[391346936,1760557836080,-500.0,0.00018999,2]
[391346937,1760557836091,-500.0,0.00018999,2]
[391346939,1760557836100,-500.0,0.00018999,2]
[391346940,1760557836110,-500.0,0.00018999,2]
[391346941,1760557836120,-500.0,0.00018999,2]
[391346942,1760557836131,-500.0,0.00018999,2]
[391346943,1760557836141,-500.0,0.00018999,2]
[391346944,1760557836151,-500.0,0.00018999,2]
[391346945,1760557836161,-500.0,0.00018999,2]
[391346946,1760557836173,-500.0,0.00018999,2]
[391346947,1760557836183,-500.0,0.00018999,2]
[391346948,1760557836194,-557.46546228,0.00018999,2]
[391346949,1760557836204,-500.0,0.00018999,2]
[391346950,1760557836214,-29186.74579701,0.00019,2]
[391346951,1760557836238,-501.12426704,0.00019,2]
[391346952,1760557836251,-3782.09655715,0.00019,2]
[391346953,1760557836263,-2263.36344285,0.00019,2]
[391346954,1760557836275,-608.24647079,0.00019,2]
[391346955,1760557836288,-634.41028821,0.00019,2]
[391346956,1760557836536,-1117.41460021,0.00019,2]
[391346958,1760557838325,-2311.02088893,0.00019,2]
[391346959,1760557838338,-1850.9311271,0.00019,2]
[391346960,1760557838350,-780.00000001,0.00019,2]
[391346961,1760557838362,-11775.72864623,0.00019,2]
[391346962,1760557838374,-2524.94000031,0.00019,2]
[391346963,1760557838390,-15379.80987876,0.00019,2]
[391346964,1760557838433,-29868.98352078,0.00019,2]
[391346965,1760557838445,-3058.02622672,0.00019,2]
[391346966,1760557838457,-680.43528454,0.00019,2]
[391346967,1760557838487,-4334.52092005,0.00019,2]
[391346975,1760557840233,-1156.5,0.00019,2]
[391346976,1760557840245,-489.35362707,0.00019,2]
[391346977,1760557840257,-477.80224249,0.00019,2]
[391346978,1760557840290,-2705.9,0.00019,2]
[391346979,1760557840301,-13592.224,0.00019,2]
[391346980,1760557840313,-580.28705655,0.00019,2]
[391346981,1760557840324,-919.71294342,0.00019,2]
[391346982,1760557840344,-1540.0,0.00019,2]
[391346983,1760557840357,-33787.06425476,0.00019,2]
[391346984,1760557840369,-25237.12323237,0.00019,2]
[391346985,1760557840380,-468.33230114,0.00019,2]
[391346986,1760557840392,-785.28740855,0.00019,2]
[391346987,1760557840404,-327.99999979,0.00019,2]
[391346988,1760557840420,-358.262448,0.00019,2]
[391346989,1760557840432,-2362.52447092,0.00019,2]
[391346990,1760557840443,-602.23511477,0.00019,2]
[391346991,1760557840458,-1174.18497059,0.00019,2]
[391346994,1760557845299,-515.32971396,0.00017869,2]
[391346995,1760557845310,-476.14,0.00017869,2]
[391346996,1760557845332,-860.109254,0.00017869,2]
[391346997,1760557845351,-263.46574322,0.00017869,2]
[391347034,1760558361286,283.7668,0.00027397,120]
[391347035,1760558599504,500.0,0.00024949,120]
[391347036,1760558599962,500.0,0.00027049,120]
[391347062,1760559031450,-648.86,0.00013699,2]
[391347063,1760559031460,-198.06,0.00016712,2]
[391347064,1760559031470,-158.30235336,0.00017512,2]
[391347065,1760559031482,-289.96440231,0.00017512,2]
[391347066,1760559031493,-26.40737833,0.00017512,2]
[391347067,1760559031503,-1342.09958282,0.000176,2]
[391347068,1760559031519,-964.8307927,0.000176,2]
[391347069,1760559031531,-193.06962448,0.000176,2]
[391347070,1760559031541,-153.59013677,0.00017633,2]
[391347071,1760559031551,-1155.34,0.0001764,2]
[391347072,1760559031560,-150.0,0.00017733,2]
[391347073,1760559031570,-300.0,0.00017737,2]
[391347074,1760559031579,-1200.0,0.00017737,2]
[391347075,1760559031588,-25.20523391,0.00017738,2]
[391347076,1760559031599,-1391.34623035,0.00017738,2]
[391347077,1760559031610,-1080.64373057,0.00017738,2]
[391347078,1760559034801,-2.80480517,0.00017738,2]
[391347079,1760559034811,-2293.07885329,0.00017738,2]
[391347080,1760559034820,-749.0,0.00017869,2]
[391347081,1760559034830,-1445.50544007,0.00017869,2]
[391347082,1760559034841,-603.49455993,0.00017869,2]
[391347083,1760559034851,-736.10544007,0.00017869,2]
[391347084,1760559034918,-530.89455993,0.00017869,2]
[391347085,1760559034928,-3407.0,0.00017869,2]
[391347086,1760559034938,-1588.0,0.00017869,2]
[391347087,1760559034950,-2735.26385919,0.00017869,2]
[391347266,1760559039018,-882.6808005,0.00017869,2]
[391347269,1760559039044,-268.60734031,0.00017869,2]
[391347271,1760559039054,-1182.0,0.00017869,2]
[391347273,1760559039064,-2545.0,0.00017869,2]
[391347275,1760559039074,-902.0,0.00017869,2]
[391347277,1760559039084,-160.0,0.00017885,2]
[391347279,1760559039094,-475.49624517,0.00017919,2]
[391347281,1760559039105,-695.07,0.00017986,2]
[391347282,1760559039115,-1615.82977536,0.00018,2]
[391347284,1760559039124,-695.07,0.00018,2]
[391347286,1760559039135,-695.07,0.00018,2]
[391347288,1760559039145,-3889.93814076,0.0001807,2]
[391347290,1760559039157,-5516.50240046,0.0001807,2]
[391347294,1760559039187,-370.53,0.0001807,2]
[391347296,1760559039199,-336.73549963,0.0001807,2]
[391347298,1760559039211,-451.15504761,0.0001807,2]
[391347306,1760559039294,-544.38170658,0.0001807,2]
[391347308,1760559039307,-4025.38630471,0.0001807,2]
[391347324,1760559039429,-592.83221147,0.0001807,2]
[391347330,1760559039487,-6519.91868878,0.0001807,2]
[391347331,1760559039496,-1615.82977536,0.000182,2]
[391347332,1760559039506,-695.07,0.000182,2]
[391347333,1760559039516,-1390.14,0.000182,2]
[391347334,1760559039525,-474.66,0.000182,2]
[391347335,1760559039535,-695.07,0.000182,2]
[391347336,1760559039544,-191.93,0.00018238,2]
[391347337,1760559039554,-4150.1,0.00018252,30]
[391347338,1760559039563,-474.66,0.000183,2]
[391347339,1760559039572,-695.07,0.000183,2]
[391347340,1760559039581,-1390.14,0.000183,2]
[391347341,1760559039590,-166.26,0.0001832,2]
[391347342,1760559039599,-500.0,0.00018356,2]
[391347343,1760559039608,-500.0,0.00018356,2]
[391347345,1760559039618,-374.77759644,0.00018356,2]
[391347347,1760559039627,-156.25,0.00018384,2]
[391347349,1760559039636,-2000.0,0.0001839,2]
[391347351,1760559039645,-1390.0,0.0001839,2]
[391347353,1760559039656,-2000.0,0.0001839,2]
[391347355,1760559039665,-2000.0,0.0001839,2]
[391347357,1760559039674,-2000.0,0.0001839,2]
[391347359,1760559039683,-1950.0,0.0001839,2]
[391347361,1760559039692,-277.35679052,0.0001839,2]
[391347363,1760559039702,-500.0,0.0001839,2]
[391347365,1760559039711,-500.0,0.0001839,2]
[391347367,1760559039721,-500.0,0.0001839,2]
[391347369,1760559039730,-200.0,0.0001839,2]
[391347371,1760559039740,-500.0,0.0001839,2]
[391347373,1760559039750,-500.0,0.0001839,2]
[391347375,1760559039760,-500.0,0.0001839,2]
[391347377,1760559039771,-500.0,0.0001839,2]
[391347379,1760559039780,-500.0,0.0001839,2]
[391347381,1760559039790,-500.0,0.0001839,2]
[391347383,1760559039800,-500.0,0.0001839,2]
[391347385,1760559039809,-500.0,0.0001839,2]
[391347387,1760559039818,-500.0,0.0001839,2]
[391347389,1760559039828,-1542.51,0.0001839,2]
[391347391,1760559039837,-1615.82977536,0.000184,2]
[391347393,1760559039847,-7208.50192414,0.00018401,2]
[391347395,1760559039856,-4715.56149656,0.00018413,2]
[391347397,1760559039866,-8699.58950544,0.00018415,2]
[391347399,1760559039875,-8699.58950544,0.00018418,2]
[391347401,1760559039884,-8699.58950544,0.00018434,2]
[391347403,1760559039895,-501.56915717,0.00018472,2]
[391347405,1760559039905,-4715.56149656,0.00018479,2]
[391347407,1760559039915,-4715.56149656,0.00018489,2]
[391347409,1760559039924,-7208.50192414,0.00018489,2]
[391347411,1760559039933,-7208.50192414,0.00018495,2]
[391347413,1760559039942,-1000.0,0.00018499,2]
[391347415,1760559039951,-1615.82977536,0.000185,2]
[391347417,1760559039960,-1542.51,0.00018664,2]
[391347419,1760559039970,-1615.82977536,0.000187,2]
[391347421,1760559039979,-250.0,0.00018744,2]
[391347423,1760559039988,-200.0,0.00018744,2]
[391347425,1760559039998,-1542.51,0.00018938,2]
[391347427,1760559040007,-692.16,0.00018945,2]
[391347429,1760559040017,-500.0,0.00018977,2]
[391347431,1760559040026,-150.0,0.00018977,2]
[391347433,1760559040036,-500.0,0.00018977,2]
[391347435,1760559040045,-200.0,0.00018977,2]
[391347437,1760559040054,-150.0,0.00018977,2]
[391347439,1760559040064,-150.0,0.00018977,2]
[391347441,1760559040073,-200.0,0.00018977,2]
[391347443,1760559040083,-500.0,0.00018977,2]
[391347445,1760559040092,-500.0,0.00018977,2]
[391347447,1760559040103,-1000.0,0.00018987,2]
[391347450,1760559040113,-626.1257632,0.00018988,2]
[391347452,1760559040122,-13698.7720916,0.00018988,2]
[391347453,1760559040132,-8457.8783881,0.00018988,2]
[391347456,1760559040142,-150.0,0.00018988,2]
[391347458,1760559040151,-200.0,0.00018988,2]
[391347460,1760559040160,-150.0,0.00018988,2]
[391347461,1760559040170,-150.0,0.00018988,2]
[391347463,1760559040179,-150.0,0.00018988,2]
[391347465,1760559040188,-500.0,0.00018988,2]
[391347467,1760559040197,-500.0,0.00018988,2]
[391347469,1760559040206,-500.0,0.00018988,2]
[391347471,1760559040216,-150.0,0.00018988,2]
[391347473,1760559040229,-150.0,0.00018988,2]
[391347475,1760559040238,-500.0,0.00018989,2]
[391347477,1760559040247,-771.68,0.0001899,2]
[391347479,1760559040256,-500.0,0.00018999,2]
[391347481,1760559040267,-387.541309,0.00018999,2]
[391347483,1760559040276,-500.0,0.00018999,2]
[391347485,1760559040285,-500.0,0.00018999,2]
[391347487,1760559040295,-500.0,0.00018999,2]
[391347489,1760559040305,-500.0,0.00018999,2]
[391347491,1760559040314,-500.0,0.00018999,2]
[391347493,1760559040323,-21056.20903264,0.00019,2]
[391347495,1760559040332,-27067.05908202,0.00019,2]
[391347497,1760559040341,-23502.62835669,0.00019,2]
[391347499,1760559040350,-2809.48810736,0.00019,2]
[391347501,1760559040359,-300.0,0.00019,2]
[391347503,1760559040368,-200.0,0.00019,2]
[391347505,1760559040377,-1233.0,0.00019,2]
[391347507,1760559040386,-151.0,0.00019,2]
[391347509,1760559040394,-1233.0,0.00019,2]
[391347511,1760559040403,-153.27225388,0.00019,2]
[391347513,1760559040412,-151.0,0.00019,2]
[391347515,1760559040422,-1233.0,0.00019,2]
[391347516,1760559040431,-151.0,0.00019,2]
[391347519,1760559040440,-1233.0,0.00019,2]
[391347520,1760559040449,-1253.4914348,0.00019,2]
[391347523,1760559040459,-324.80900047,0.00019,2]
[391347525,1760559040468,-151.0,0.00019,2]
[391347527,1760559040477,-2659.37641,0.00019,2]
[391347529,1760559040486,-353.28256402,0.0001901,7]
[391347531,1760559040495,-678.31416492,0.00019011,2]
[391347532,1760559040505,-500.0,0.00019032,2]
[391347535,1760559040518,-193.23016378,0.00019032,2]
[391347537,1760559040526,-500.0,0.00019032,2]
[391347539,1760559040535,-279.0,0.00019032,2]
[391347541,1760559040546,-500.0,0.00019032,2]
[391347543,1760559040555,-500.0,0.00019032,2]
[391347545,1760559040564,-150.0,0.00019043,2]
[391347547,1760559040573,-150.0,0.00019043,2]
[391347549,1760559040582,-150.0,0.00019043,2]
[391347551,1760559040591,-500.0,0.00019043,2]
[391347553,1760559040600,-500.0,0.00019043,2]
[391347555,1760559040610,-500.0,0.00019043,2]
[391347557,1760559040619,-500.0,0.00019087,2]
[391347558,1760559040628,-500.0,0.00019087,2]
[391347560,1760559040637,-500.0,0.00019087,2]
[391347602,1760559040996,-500.0,0.00019087,2]
[391347606,1760559041034,-224.0,0.00019098,2]
[391347608,1760559041044,-200.0,0.00019098,2]
[391347610,1760559041054,-200.0,0.00019098,2]
[391347612,1760559041063,-500.0,0.00019098,2]
[391347614,1760559041072,-500.0,0.00019098,2]
[391347616,1760559041083,-500.0,0.00019098,2]
[391347618,1760559041092,-3076.0,0.000191,2]
[391347620,1760559041101,-181.0,0.00019121,2]
[391347622,1760559041111,-566.07372073,0.00019141,2]
[391347624,1760559041119,-500.0,0.00019141,2]
[391347626,1760559041129,-500.0,0.00019141,2]
[391347628,1760559041139,-500.0,0.00019141,2]
[391347630,1760559041148,-181.0,0.00019145,2]
[391347633,1760559041158,-500.0,0.00019152,2]
[391347635,1760559041167,-500.0,0.00019152,2]
[391347637,1760559041176,-151.0,0.00019178,2]
[391347639,1760559041185,-4000.0,0.00019178,2]
[391347641,1760559041195,-200.0,0.0001919,2]
[391347642,1760559041204,-500.0,0.00019196,2]
[391347644,1760559041214,-500.0,0.00019196,2]
[391347646,1760559041229,-500.0,0.00019207,2]
[391347648,1760559041239,-500.0,0.00019207,2]
[391347651,1760559041249,-150.47939638,0.0001921,2]
[391347653,1760559041263,-150.0,0.0001921,2]
[391347655,1760559041278,-150.0,0.0001921,2]
[391347657,1760559041288,-150.0,0.0001921,2]
[391347659,1760559041299,-150.0,0.0001921,2]
[391347661,1760559041309,-1542.51,0.00019212,2]
[391347663,1760559041318,-2500.0,0.00019214,2]
[391347665,1760559041327,-500.0,0.00019251,2]
[391347667,1760559041336,-500.0,0.00019251,2]
[391347669,1760559041346,-380.0,0.00019262,2]
[391347671,1760559041355,-319.0070684,0.00019262,2]
[391347673,1760559041364,-500.0,0.00019263,2]
[391347675,1760559041373,-299.16859255,0.00019265,2]
[391347677,1760559041383,-300.0,0.000193,2]
[391347679,1760559041392,-423.0,0.00019306,2]
[391347681,1760559041402,-500.0,0.00019306,2]
[391347683,1760559041411,-771.68,0.00019307,2]
[391347685,1760559041420,-1923.117,0.00019308,2]
[391347687,1760559041430,-166.105,0.00019308,2]
[391347689,1760559041439,-166.66,0.00019349,2]
[391347691,1760559041448,-420.0,0.00019358,2]
[391347693,1760559041458,-500.0,0.00019361,2]
[391347695,1760559041467,-168.0,0.00019367,2]
[391347697,1760559041476,-200.0,0.00019382,2]
[391347699,1760559041485,-500.0,0.00019415,2]
[391347700,1760559041494,-168.0,0.00019417,2]
[391347702,1760559041504,-181.0,0.00019428,2]
[391347705,1760559041513,-1000.0,0.00019438,2]
[391347707,1760559041523,-500.0,0.00019452,2]
[391347709,1760559041533,-1680.0,0.00019454,2]
[391347711,1760559041542,-181.0,0.00019454,2]
[391347713,1760559041551,-168.33361359,0.0001947,2]
[391347715,1760559041564,-1542.51,0.00019486,2]
[391347716,1760559041574,-181.0,0.00019494,2]
[391347718,1760559041583,-168.0,0.0001951,2]
[391347720,1760559041592,-500.0,0.00019537,2]
[391347722,1760559041602,-200.0,0.00019576,2]
[391347724,1760559041611,-300.0,0.00019599,2]
[391347726,1760559041620,-193.0,0.000196,2]
[391347728,1760559041630,-1600.0,0.000196,7]
[391347730,1760559041640,-168.0,0.00019607,2]
[391347733,1760559041650,-181.0,0.00019609,2]
[391347734,1760559041659,-181.0,0.00019615,2]
[391347737,1760559041669,-181.0,0.00019652,2]
[391347738,1760559041678,-445.08441249,0.00019665,2]
[391347740,1760559041688,-314.0,0.00019671,2]
[391347743,1760559041697,-771.68,0.0001969,2]
[391347744,1760559041706,-182.89279097,0.00019699,5]
[391347746,1760559041716,-20000.0,0.000197,2]
[391347748,1760559041725,-25298.19995954,0.000197,3]
[391347750,1760559041735,-2000.0,0.000197,2]
[391347753,1760559041745,-3300.0,0.000197,7]
[391347754,1760559041754,-1000.0,0.000197,2]
[391347756,1760559041763,-181.0,0.00019724,2]
[391347758,1760559041773,-156.587,0.00019726,2]
[391347760,1760559041782,-181.0,0.00019732,2]
[391347762,1760559041792,-150.0,0.00019757,2]
[391347764,1760559041801,-287.61899177,0.00019759,2]
[391347766,1760559041810,-1542.51,0.0001976,2]
[391347768,1760559041820,-166.58,0.00019764,2]
[391347770,1760559041829,-168.19,0.00019764,2]
[391347772,1760559041838,-200.0,0.00019771,2]
[391347774,1760559041847,-2500.0,0.00019777,3]
[391347776,1760559041856,-2500.0,0.00019786,3]
[391347778,1760559041866,-2500.0,0.00019792,3]
[391347780,1760559041876,-2500.0,0.00019794,3]
[391347782,1760559041885,-183.63032766,0.000198,2]
[391347784,1760559041895,-203.90068319,0.000198,2]
[391347786,1760559041904,-5000.0,0.000198,2]
[391347788,1760559041914,-5000.0,0.000198,7]
[391347790,1760559041923,-285.34258908,0.000198,2]
[391347792,1760559041932,-2500.0,0.00019801,3]
[391347794,1760559041942,-2500.0,0.00019803,3]
[391347796,1760559041951,-2500.0,0.0001981,3]
[391347798,1760559041960,-500.0,0.00019811,2]
[391347801,1760559041971,-771.68,0.00019811,2]
[391347803,1760559041980,-2500.0,0.00019812,3]
[391347805,1760559041989,-2500.0,0.00019819,3]
[391347807,1760559041998,-1326.0,0.00019821,2]
[391347809,1760559042007,-2500.0,0.00019821,3]
[391347810,1760559042016,-2500.0,0.00019827,3]
[391347813,1760559042026,-2500.0,0.0001983,3]
[391347815,1760559042035,-2500.0,0.00019836,3]
[391347816,1760559042045,-2500.0,0.00019838,3]
[391347818,1760559042055,-2500.0,0.00019845,3]
[391347820,1760559042064,-2500.0,0.00019847,3]
[391347822,1760559042074,-181.0,0.0001985,2]
[391347824,1760559042083,-2500.0,0.00019854,3]
[391347826,1760559042093,-2500.0,0.00019856,3]
[391347828,1760559042103,-2500.0,0.00019863,3]
[391347830,1760559042113,-2500.0,0.00019865,3]
[391347832,1760559042123,-2500.0,0.00019871,3]
[391347834,1760559042135,-501.49068223,0.00019873,2]
[391347836,1760559042144,-364.10864629,0.00019873,2]
[391347838,1760559042154,-2500.0,0.00019874,3]
[391347840,1760559042164,-1209.03480453,0.00019874,2]
[391347842,1760559042174,-2500.0,0.0001988,3]
[391347844,1760559042184,-771.68,0.0001988,2]
[391347846,1760559042195,-2500.0,0.00019882,3]
[391347848,1760559042205,-2500.0,0.00019882,3]
[391347851,1760559042216,-2500.0,0.00019889,3]
[391347853,1760559042229,-11193.98661984,0.0001989,2]
[391347855,1760559042239,-150.8,0.0001989,2]
[391347857,1760559042249,-150.8,0.0001989,2]
[391347859,1760559042259,-150.8,0.0001989,2]
[391347861,1760559042271,-150.8,0.0001989,2]
[391347863,1760559042280,-150.8,0.0001989,2]
[391347865,1760559042294,-150.8,0.0001989,2]
[391347867,1760559042304,-150.8,0.0001989,2]
[391347869,1760559042314,-150.8,0.0001989,2]
[391347871,1760559042323,-150.8,0.0001989,2]
[391347874,1760559042333,-150.8,0.0001989,2]
[391347877,1760559042343,-150.8,0.0001989,2]
[391347880,1760559042352,-2500.0,0.00019891,3]
[391347883,1760559042363,-2500.0,0.00019891,3]
[391347885,1760559042373,-2500.0,0.00019891,3]
[391347887,1760559042382,-2500.0,0.00019897,3]
[391347890,1760559042392,-2500.0,0.00019898,3]
[391347891,1760559042402,-150.0,0.00019898,2]
[391347892,1760559042411,-500.0,0.00019899,2]
[391347893,1760559042420,-218.27412158,0.00019899,2]
[391347894,1760559042429,-317.33761984,0.00019899,2]
[391347895,1760559042439,-154.16028731,0.00019899,2]
[391347896,1760559042448,-227.31667558,0.00019899,2]
[391347897,1760559042457,-32117.79432282,0.000199,2]
[391347898,1760559042467,-14409.76685343,0.000199,3]
[391347900,1760559042476,-475.49624517,0.000199,3]
[391347902,1760559042486,-1210160.5498527,0.000199,3]
[391347904,1760559042496,-475.49624517,0.000199,7]
[391347906,1760559042506,-2500.0,0.000199,3]
[391347908,1760559042515,-475.49624517,0.000199,3]
[391347910,1760559042525,-2500.0,0.000199,3]
[391347912,1760559042535,-2500.0,0.000199,3]
[391347914,1760559042545,-475.49624517,0.000199,3]
[391347916,1760559042556,-551001.2525083,0.000199,2]
[391347918,1760559042566,-151.0,0.000199,7]
[391347920,1760559042576,-152.36362,0.000199,7]
[391347922,1760559042585,-151.0,0.000199,7]
[391347924,1760559042594,-151.0,0.000199,7]
[391347926,1760559042604,-151.0,0.000199,7]
[391347928,1760559042614,-167.447988,0.000199,7]
[391347930,1760559042624,-151.0,0.000199,7]
[391347932,1760559042634,-151.0,0.000199,7]
[391347934,1760559042643,-151.0,0.000199,7]
[391347936,1760559042653,-151.0,0.000199,7]
[391347938,1760559042663,-151.0,0.000199,7]
[391347940,1760559042672,-151.0,0.000199,7]
[391347941,1760559042682,-151.0,0.000199,7]
[391347943,1760559042692,-151.0,0.000199,7]
[391347945,1760559042702,-151.0,0.000199,7]
[391347947,1760559042711,-151.0,0.000199,7]
[391347949,1760559042722,-151.0,0.000199,7]
[391347951,1760559042731,-301.107394,0.000199,7]
[391347953,1760559042741,-301.107394,0.000199,7]
[391347955,1760559042751,-301.107394,0.000199,7]
[391347957,1760559042761,-301.107394,0.000199,7]
[391347960,1760559042771,-301.107394,0.000199,7]
[391347962,1760559042781,-301.107394,0.000199,7]
[391347964,1760559042790,-301.107394,0.000199,7]
[391347965,1760559042800,-301.107394,0.000199,7]
[391347967,1760559042809,-151.0,0.000199,7]
[391347969,1760559042818,-151.0,0.000199,7]
[391347971,1760559042827,-151.0,0.000199,7]
[391347973,1760559042836,-215.434846,0.000199,7]
[391347975,1760559042845,-154.820696,0.000199,7]
[391347977,1760559042855,-151.0,0.000199,7]
[391347979,1760559042864,-151.0,0.000199,7]
[391347981,1760559042874,-151.0,0.000199,7]
[391347983,1760559042884,-234.84803031,0.000199,7]
[391347985,1760559042894,-151.0,0.000199,7]
[391347987,1760559042903,-151.0,0.000199,7]
[391347989,1760559042913,-151.0,0.000199,7]
[391347991,1760559042922,-151.0,0.000199,7]
[391347993,1760559042932,-151.0,0.000199,7]
[391347995,1760559042941,-151.0,0.000199,7]
[391347997,1760559042950,-152.71371,0.000199,7]
[391347999,1760559042959,-170.210237,0.000199,7]
[391348001,1760559042969,-151.0,0.000199,7]
[391348003,1760559042978,-151.0,0.000199,7]
[391348005,1760559042988,-151.0,0.000199,7]
[391348007,1760559042997,-151.0,0.000199,7]
[391348009,1760559043007,-151.0,0.000199,7]
[391348011,1760559043018,-151.0,0.000199,7]